bitfinex-derivatives/quotes_SOLF0:USTF0_20251026
["timestamp","ask_amount","ask_price","bid_price","bid_amount"]
[1761455215352,4.03903384,192.8,192.77,65.45]
[1761455215553,2.8,192.79,192.78,2.85]
[1761455216053,2.8,192.81,192.78,2.85]
[1761455216355,6.83880776,192.8,192.78,2.85]
[1761455216555,2.8,192.8,192.78,2.85]
[1761455218254,2.8,192.8,192.75,2.85]
[1761455220353,134.13492623,192.84,192.75,2.85]
[1761455220549,2.8,192.82,192.75,2.85]
[1761455220746,2.8,192.8,192.75,2.85]
[1761455222653,2.61,192.78,192.71,2.63]
[1761455222855,2.61,192.77,192.71,2.63]
[1761455230255,2.75,192.76,192.71,2.63]
[1761455242974,2.75,192.76,192.68,2.63]
[1761455244171,6.78771157,192.75,192.68,2.63]
[1761455244366,2.75,192.75,192.68,2.63]
[1761455261300,6.92437149,192.74,192.69,2.66]
[1761455261494,2.88,192.74,192.69,2.66]
[1761455262188,4.82270632,192.8,192.7,1.51527499]
[1761455262494,4.04784048,192.79,192.71,2.66]
[1761455262695,4.04784048,192.78,192.71,2.66]
[1761455262997,4.04784048,192.77,192.71,2.66]
[1761455263199,2.88,192.8,192.71,2.66]
[1761455263396,4.04845138,192.79,192.71,2.66]
[1761455263597,4.04845138,192.78,192.71,2.66]
[1761455263794,2.88,192.8,192.71,2.66]
[1761455263996,4.04813037,192.79,192.71,2.66]
[1761455264192,4.04813037,192.78,192.71,2.66]
[1761455264393,2.88,192.8,192.71,2.66]
[1761455264593,4.04834422,192.79,192.71,2.66]
[1761455264793,4.04834422,192.78,192.71,2.66]
[1761455264996,2.88,192.8,192.71,2.66]
[1761455265201,4.04834422,192.79,192.71,2.66]
[1761455265395,4.04834422,192.78,192.71,2.66]
[1761455265597,2.88,192.8,192.71,2.66]
[1761455265894,4.04793618,192.79,192.71,2.66]
[1761455266094,4.04793618,192.78,192.71,2.66]
[1761455266297,2.88,192.8,192.71,2.66]
[1761455266492,4.04788244,192.79,192.71,2.66]
[1761455266696,2.88,192.8,192.71,2.66]
[1761455266893,4.04789185,192.79,192.71,2.66]
[1761455267092,4.04788244,192.78,192.71,2.66]
[1761455267401,2.88,192.8,192.71,2.66]
[1761455267705,4.0477522,192.79,192.71,2.66]
[1761455267895,2.88,192.8,192.71,2.66]
[1761455268195,4.0477522,192.79,192.71,2.66]
[1761455268395,2.88,192.8,192.71,2.66]
[1761455268599,4.04717208,192.79,192.71,2.66]
[1761455268902,2.88,192.8,192.71,2.66]
[1761455269103,4.04717208,192.79,192.71,2.66]
[1761455269305,2.88,192.8,192.71,2.66]
[1761455269499,4.04661358,192.79,192.71,2.66]
[1761455269705,2.88,192.8,192.71,2.66]
[1761455269907,4.04661524,192.79,192.71,2.66]
[1761455270205,2.88,192.8,192.71,2.66]
[1761455270406,4.04661524,192.79,192.71,2.66]
[1761455270608,2.88,192.8,192.71,2.66]
[1761455270906,4.04611088,192.79,192.71,2.66]
[1761455271105,2.88,192.8,192.71,2.66]
[1761455271304,4.04611088,192.79,192.71,2.66]
[1761455271505,2.88,192.8,192.71,2.66]
[1761455271704,4.04564165,192.79,192.71,2.66]
[1761455271902,2.88,192.8,192.71,2.66]
[1761455272102,4.04564165,192.79,192.71,2.66]
[1761455272295,2.88,192.8,192.71,2.66]
[1761455272500,6.92497493,192.79,192.71,2.66]
[1761455272699,2.88,192.79,192.71,2.66]
[1761455275705,2.88,192.79,192.72,2.66]
[1761455275910,6.92143528,192.81,192.72,2.66]
[1761455276100,2.88,192.81,192.72,2.66]
[1761455280405,2.88,192.81,192.72,7.3293]
[1761455280607,2.88,192.81,192.73,2.66]
[1761455284812,2.88,192.81,192.74,2.87]
[1761455285209,135.54224181,192.83,192.74,2.87]
[1761455286012,135.54224181,192.83,192.75,2.87]
[1761455287115,2.63,192.82,192.75,2.87]
[1761455287412,2.63,192.82,192.68,80.52708988]
[1761455287612,2.63,192.85,192.74,2.87]
[1761455289220,2.63,192.85,192.79,2.67]
[1761455293419,2.77,192.83,192.76,2.67]
[1761455293623,2.77,192.83,192.73,43.97]
[1761455293809,2.77,192.83,192.74,2.67]
[1761455308435,2.77,192.8,192.7,2.67]
[1761455309438,2.77,192.8,192.7,62.56]
[1761455309639,2.77,192.8,192.71,2.67]
[1761455335358,138.61163517,192.87,192.74,2.75]
[1761455335359,2.67,192.86,192.74,2.75]
[1761455335550,4.03523645,192.85,192.74,2.75]
[1761455335753,2.67,192.86,192.74,2.75]
[1761455335951,4.03524815,192.85,192.74,2.75]
[1761455336249,2.67,192.86,192.74,2.75]
[1761455336456,4.0360004,192.85,192.74,2.75]
[1761455336657,2.67,192.86,192.74,2.75]
[1761455336861,4.0360004,192.85,192.74,2.75]
[1761455337058,2.67,192.86,192.78,2.75]
[1761455337256,6.705998,192.85,192.8,2.75]
[1761455337460,2.67,192.85,192.8,2.75]
[1761455338262,4.03742377,192.84,192.8,2.75]
[1761455338462,2.67,192.85,192.8,2.75]
[1761455338764,4.03742377,192.84,192.8,2.75]
[1761455338965,2.67,192.85,192.8,2.75]
[1761455341559,2.67,192.85,192.77,4.668]
[1761455341766,2.68,192.83,192.73,1.51401569]
[1761455341968,2.68,192.81,192.73,1.51401569]
[1761455342555,2.68,192.79,192.72,2.69]
[1761455342965,2.68,192.82,192.72,2.69]
[1761455343969,1.51401569,192.8,192.72,2.69]
[1761455344168,4.19401569,192.8,192.72,2.69]
[1761455350573,4.19401569,192.8,192.74,2.83]
[1761455355479,2.68,192.8,192.74,2.83]
[1761455363179,2.63,192.84,192.76,2.83]
[1761455363387,2.63,192.83,192.78,2.83]
[1761455363679,2.63,192.83,192.79,2.83]
[1761455365880,136.31976759,192.87,192.79,2.83]
[1761455366288,2.63,192.86,192.79,2.83]
[1761455368384,2.63,192.86,192.82,2.83]
[1761455375185,2.63,192.89,192.82,2.83]
[1761455379082,2.63,192.89,192.83,2.78]
[1761455381401,2.65,192.92,192.84,2.78]
[1761455381590,2.65,192.92,192.86,2.78]
[1761455387996,2.65,192.92,192.88,2.78]
[1761455390604,4.00824399,192.97,192.88,2.78]
[1761455390799,2.65,192.94,192.88,2.78]
[1761455396711,2.65,193.02,192.91,2.78]
[1761455397016,2.65,193.0,192.91,2.78]
[1761455397213,2.65,192.99,192.91,2.78]
[1761455397414,4.00731922,192.99,192.91,2.78]
[1761455397614,2.65,192.98,192.91,2.78]
[1761455401827,2.76,192.97,192.91,4.29401569]
[1761455402720,2.76,192.97,192.91,2.78]
[1761455407621,2.76,193.01,192.91,2.78]
[1761455407824,151.41220469,193.03,192.92,2.73]
[1761455407825,2.76,193.0,192.92,2.73]
[1761455409030,2.76,193.0,192.94,2.7]
[1761455413326,2.76,193.0,192.95,2.7]
[1761455416838,2.76,193.0,192.92,2.7]
[1761455417234,2.76,193.0,192.93,65.26]
[1761455417632,2.76,193.0,192.94,2.7]
[1761455422441,2.76,193.0,192.94,62.56]
[1761455422648,2.76,193.0,192.95,2.7]
[1761455427236,2.76,193.0,192.94,62.56]
[1761455427448,2.76,193.0,192.95,2.7]
[1761455438954,6.82013513,193.03,192.95,2.7]
[1761455439155,2.81,193.03,192.95,2.7]
[1761455441053,2.81,193.03,192.95,4.6638]
[1761455441251,2.81,193.03,192.96,2.8]
[1761455444363,4.01812319,193.02,192.96,2.8]
[1761455444563,2.81,193.03,192.96,2.8]
[1761455444766,4.01812319,193.02,192.96,2.8]
[1761455444963,2.81,193.03,192.96,2.8]
[1761455445163,4.01812319,193.02,192.96,2.8]
[1761455445363,2.81,193.03,192.96,2.8]
[1761455445568,4.01812411,193.02,192.96,2.8]
[1761455445760,2.81,193.03,192.96,2.8]
[1761455445963,4.01812411,193.02,192.96,2.8]
[1761455446264,2.81,193.03,192.96,2.8]
[1761455446562,4.0191189,193.02,192.96,2.8]
[1761455446758,2.81,193.03,192.96,2.8]
[1761455446962,4.0191189,193.02,192.96,2.8]
[1761455447162,2.81,193.03,192.96,2.8]
[1761455447361,4.02044882,193.02,192.96,2.8]
[1761455447566,2.81,193.03,192.96,2.8]
[1761455447766,4.0204548,193.02,192.96,2.8]
[1761455447964,2.81,193.03,192.96,2.8]
[1761455448266,4.0204548,193.02,192.96,2.8]
[1761455448466,2.81,193.03,192.96,2.8]
[1761455448667,4.02137568,193.02,192.96,2.8]
[1761455448854,2.81,193.03,192.96,2.8]
[1761455449054,4.02137568,193.02,192.96,2.8]
[1761455449255,2.81,193.03,192.96,2.8]
[1761455449466,4.02220693,193.02,192.96,2.8]
[1761455449664,2.81,193.03,192.96,2.8]
[1761455449865,4.02220693,193.02,192.96,2.8]
[1761455450060,2.81,193.03,192.96,2.8]
[1761455450261,4.02299518,193.02,192.96,2.8]
[1761455450461,2.81,193.03,192.96,2.8]
[1761455450661,4.02299518,193.02,192.96,2.8]
[1761455450866,2.81,193.03,192.96,2.8]
[1761455451060,4.02299518,193.02,192.96,2.8]
[1761455451261,4.02299518,193.01,192.96,2.8]
[1761455451460,2.81,193.03,192.96,2.8]
[1761455451667,4.02380949,193.02,192.96,2.8]
[1761455451962,4.02380949,193.01,192.96,2.8]
[1761455452169,2.81,193.03,192.96,2.8]
[1761455452367,6.83481374,193.02,192.96,2.8]
[1761455452570,4.02481374,193.01,192.96,2.8]
[1761455452771,2.81,193.05,192.96,2.8]
[1761455452963,2.81,193.03,192.96,2.8]
[1761455453162,6.83481539,193.02,192.96,2.8]
[1761455453367,4.02481539,193.01,192.96,2.8]
[1761455453568,2.81,193.03,192.96,2.8]
[1761455453770,4.02474382,193.02,192.96,2.8]
[1761455453962,4.02474382,193.01,192.96,2.8]
[1761455454164,2.81,193.03,192.96,2.8]
[1761455454358,4.02467558,193.02,192.96,2.8]
[1761455454565,4.02467558,193.01,192.96,2.8]
[1761455454766,2.81,193.03,192.96,2.8]
[1761455454972,4.02467558,193.02,192.96,2.8]
[1761455455164,2.81,193.03,192.96,2.8]
[1761455455361,4.02468389,193.02,192.96,2.8]
[1761455455569,2.81,193.03,192.96,2.8]
[1761455455774,4.02468324,193.02,192.96,2.8]
[1761455455974,2.81,193.03,192.96,2.8]
[1761455456174,4.02468324,193.02,192.96,2.8]
[1761455456375,2.81,193.03,192.96,2.8]
[1761455456676,4.0245883,193.02,192.96,2.8]
[1761455456974,2.81,193.03,192.96,2.8]
[1761455457180,4.0245883,193.02,192.96,2.8]
[1761455457366,2.81,193.03,192.96,2.8]
[1761455457566,4.02443495,193.02,192.96,2.8]
[1761455457871,2.81,193.03,192.96,2.8]
[1761455458063,4.02443164,193.02,192.96,2.8]
[1761455458267,2.81,193.03,192.96,2.8]
[1761455458467,4.02430097,193.02,192.96,2.8]
[1761455458668,2.81,193.02,192.96,2.8]
[1761455468285,2.81,193.02,192.96,7.4635]
[1761455468488,2.81,193.02,192.97,2.63]
[1761455471993,2.81,193.02,192.88,121.81183504]
[1761455472200,2.63,192.97,192.89,2.63]
[1761455472390,2.63,192.97,192.9,2.63]
[1761455472797,2.63,192.94,192.9,2.63]
[1761455473684,2.63,192.94,192.89,69.7954]
[1761455474400,2.63,192.94,192.9,2.63]
[1761455476691,2.63,192.94,192.91,62.5]
[1761455477296,2.63,192.94,192.91,65.13]
[1761455481197,2.63,192.94,192.91,62.5]
[1761455481400,2.63,192.94,192.84,209.83]
[1761455481597,2.63,192.94,192.87,1.51149327]
[1761455481799,2.63,192.94,192.87,4.14149327]
[1761455491811,2.63,192.94,192.87,1.51149327]
[1761455492114,2.63,192.94,192.88,2.63]
[1761455494021,2.63,192.94,192.9,2.63]
[1761455499310,2.88,192.97,192.93,2.67]
[1761455502414,2.88,192.97,192.92,4.18149327]
[1761455511615,2.88,192.97,192.92,1.51149327]
[1761455511825,2.88,192.97,192.92,4.18149327]
[1761455514330,2.88,193.0,192.96,2.67]
[1761455514520,6.90906278,192.99,192.96,2.67]
[1761455514723,4.02906278,192.98,192.96,2.67]
[1761455514919,2.88,193.0,192.96,2.67]
[1761455515228,6.91101733,192.99,192.98,1.51149327]
[1761455515727,2.88,192.99,192.98,1.51149327]
[1761455516324,6.91316546,192.99,192.98,1.51149327]
[1761455516523,2.88,192.99,192.98,1.51149327]
[1761455516926,2.88,193.04,192.98,4.18149327]
[1761455517123,2.88,193.02,192.98,4.18149327]
[1761455517326,6.91374365,193.01,192.99,2.67]
[1761455517531,2.88,193.05,192.99,2.67]
[1761455517731,2.88,193.03,192.99,2.67]
[1761455518031,6.91422184,193.02,192.99,2.67]
[1761455518230,2.88,193.02,192.99,2.67]
[1761455520726,2.88,193.02,193.01,1.51149327]
[1761455521233,2.88,193.02,192.99,2.67]
[1761455529251,4.02412091,193.05,192.99,2.67]
[1761455529252,2.61,193.05,192.99,2.67]
[1761455529949,2.61,193.05,192.99,4.6629]
[1761455530151,2.61,193.05,193.0,2.82]
[1761455534652,2.61,193.07,193.0,2.82]
[1761455549156,2.61,193.05,193.0,2.82]
[1761455556563,148.02050181,193.08,193.0,2.82]
[1761455556767,2.61,193.07,193.0,2.82]
[1761455563366,6.72271643,193.06,193.0,2.82]
[1761455563564,2.69,193.05,193.0,2.82]
[1761455567871,2.69,193.09,193.0,2.82]
[1761455568072,2.69,193.07,193.0,2.82]
[1761455568575,2.69,193.07,193.0,4.6625]
[1761455568771,2.69,193.07,193.01,2.67]
[1761455575479,2.69,193.1,193.0,2.67]
[1761455575680,6.73025401,193.09,193.0,2.67]
[1761455575879,4.04025401,193.08,193.0,2.67]
[1761455576080,2.69,193.09,193.0,2.67]
[1761455576280,4.0401119,193.08,193.0,2.67]
[1761455576481,2.69,193.09,193.0,2.67]
[1761455576681,4.0401089,193.08,193.0,2.67]
[1761455576879,2.69,193.09,193.0,2.67]
[1761455577080,4.0401089,193.08,193.03,2.67]
[1761455577285,2.69,193.1,193.03,2.67]
[1761455577481,6.73000034,193.09,193.03,2.67]
[1761455577681,4.04000034,193.08,193.03,2.67]
[1761455577974,2.69,193.09,193.03,2.67]
[1761455582974,2.69,193.09,193.05,2.66]
[1761455583180,2.69,193.09,193.04,4.6617]
[1761455583181,2.69,193.09,193.07,2.66]
[1761455583581,148.79866893,193.11,193.07,2.66]
[1761455583785,2.66,193.1,193.07,2.66]
[1761455584879,2.66,193.11,193.07,2.66]
[1761455586080,2.66,193.13,193.07,2.66]
[1761455586477,2.66,193.13,193.08,2.66]
[1761455619012,2.66,193.13,193.1,1.51017786]
[1761455620115,2.66,193.13,193.1,4.19017786]
[1761455629720,2.66,193.13,193.1,1.51017786]
[1761455641435,2.66,193.13,193.1,63.93017786]
[1761455643840,2.66,193.13,193.1,66.79017786]
[1761455644742,2.66,193.13,193.1,65.28]
[1761455649149,2.66,193.13,193.1,62.42]
[1761455649350,4.44941248,193.16,193.1,62.42]
[1761455649351,2.81,193.11,193.1,62.42]
[1761455649540,6.7653337,193.11,193.1,62.42]
[1761455654252,2.81,193.11,193.1,62.42]
[1761455655950,6.76541166,193.11,193.1,62.42]
[1761455656953,6.76541166,193.11,193.09,62.42]
[1761455657147,2.81,193.11,193.09,65.21]
[1761455657348,2.81,193.11,193.09,2.79]
[1761455657747,2.81,193.11,193.09,65.21]
[1761455658253,2.81,193.11,193.09,62.42]
[1761455660649,2.81,193.11,193.09,65.21]
[1761455660854,2.81,193.11,193.09,2.79]
[1761455668958,4.44357957,193.15,193.09,2.79]
[1761455669259,6.7624595,193.14,193.09,2.79]
[1761455669459,6.7624595,193.13,193.09,2.79]
[1761455669757,2.81,193.13,193.09,2.79]
[1761455670257,2.81,193.16,193.09,2.79]
[1761455670462,3.9528003,193.15,193.09,2.79]
[1761455670651,3.9528003,193.14,193.09,2.79]
[1761455670957,2.81,193.16,193.09,2.79]
[1761455671151,3.95298191,193.15,193.09,2.79]
[1761455671352,2.81,193.16,193.09,2.79]
[1761455671657,3.9528518,193.15,193.09,2.79]
[1761455671960,2.81,193.16,193.09,2.79]
[1761455672158,3.9528518,193.15,193.09,2.79]
[1761455672351,2.81,193.16,193.12,2.79]
[1761455672547,2.81,193.14,193.11,2.79]
[1761455672863,2.81,193.14,193.12,60.24]
[1761455673456,2.81,193.14,193.12,63.03]
[1761455678458,2.81,193.14,193.12,60.24]
[1761455678758,2.76,193.17,193.13,2.72]
[1761455678963,2.76,193.15,193.13,2.72]
[1761455681656,2.76,193.15,193.12,62.96]
[1761455681855,6.71522031,193.14,193.12,62.96]
[1761455682066,3.95505934,193.13,193.12,62.96]
[1761455682966,2.76,193.14,193.12,62.96]
[1761455683864,2.76,193.17,193.13,2.72]
[1761455684070,6.71530723,193.16,193.13,2.72]
[1761455684367,6.71530723,193.15,193.13,2.72]
[1761455684563,3.95530723,193.14,193.13,2.72]
[1761455688274,2.76,193.16,193.13,2.72]
[1761455688574,6.71504035,193.15,193.13,2.72]
[1761455688775,2.76,193.15,193.13,2.72]
[1761455691675,2.76,193.15,192.99,15.54]
[1761455691882,2.76,193.13,193.06,2.72]
[1761455692072,2.76,193.11,193.08,2.72]
[1761455695973,2.76,193.11,193.07,62.4]
[1761455696179,2.76,193.11,193.07,65.12]
[1761455699288,2.76,193.11,193.08,2.72]
[1761455703687,2.76,193.11,193.07,65.05]
[1761455704376,2.76,193.11,193.08,2.65]
[1761455707192,2.76,193.11,193.07,62.4]
[1761455708190,2.76,193.11,193.07,65.05]
[1761455712505,6.76070648,193.1,193.08,2.64]
[1761455712705,2.77,193.1,193.08,2.64]
[1761455714698,2.77,193.08,192.95,2.64]
[1761455714897,2.77,193.08,193.05,1.51029047]
[1761455715102,2.77,193.08,193.06,2.64]
[1761455724716,2.77,193.08,193.04,4.15029047]
[1761455724919,2.77,193.08,193.05,2.64]
[1761455725414,2.77,193.08,193.02,65.04]
[1761455725718,2.77,193.08,193.02,2.64]
[1761455727819,2.77,193.08,193.04,1.51029047]
[1761455728017,2.77,193.08,193.04,4.15029047]
[1761455730617,2.77,193.08,193.04,1.51029047]
[1761455730821,2.77,193.08,193.05,2.64]
[1761455734225,3.9868259,193.07,193.05,2.64]
[1761455734526,2.77,193.07,193.05,2.64]
[1761455737726,2.77,193.1,193.05,2.64]
[1761455737918,3.98862458,193.09,193.05,2.64]
[1761455738125,2.77,193.07,193.05,2.64]
[1761455745534,2.88,193.1,193.05,2.64]
[1761455745723,6.85973795,193.09,193.05,2.64]
[1761455745923,3.97973795,193.08,193.05,2.64]
[1761455746224,3.97973795,193.07,193.05,2.64]
[1761455746523,2.88,193.09,193.05,2.64]
[1761455746724,2.88,193.07,193.05,2.64]
[1761455750434,4.45328343,193.11,193.05,2.64]
[1761455750731,2.88,193.09,193.05,2.64]
[1761455750936,3.98155103,193.08,193.05,2.64]
[1761455751235,3.98155103,193.07,193.05,2.64]
[1761455751433,2.88,193.08,193.05,2.64]
[1761455751635,3.98199451,193.07,193.05,2.64]
[1761455751837,2.88,193.09,193.05,2.64]
[1761455752137,6.86199359,193.08,193.05,2.64]
[1761455752332,3.98199359,193.07,193.05,2.64]
[1761455752530,2.88,193.08,193.05,2.64]
[1761455752732,3.98165397,193.07,193.05,2.64]
[1761455752930,2.88,193.08,193.05,2.64]
[1761455753132,3.98165265,193.07,193.05,2.64]
[1761455753330,2.88,193.08,193.05,2.64]
[1761455753529,6.86221676,193.07,193.05,2.64]
[1761455753731,2.88,193.07,193.05,2.64]
[1761455755730,2.88,193.1,193.05,2.64]
[1761455755930,2.88,193.08,193.05,2.64]
[1761455756137,3.98359836,193.07,193.05,2.64]
[1761455756338,2.88,193.08,193.05,2.64]
[1761455756542,3.98448562,193.07,193.05,2.64]
[1761455756836,2.88,193.08,193.05,2.64]
[1761455757037,3.98436171,193.07,193.05,2.64]
[1761455757240,3.98546876,193.06,193.05,2.64]
[1761455761439,2.63,193.11,193.05,2.64]
[1761455761631,2.63,193.11,193.08,2.85]
[1761455761632,3.98740861,193.1,193.08,2.85]
[1761455761836,3.98740861,193.09,193.08,2.85]
[1761455762540,149.31302451,193.16,193.08,2.85]
[1761455762743,6.61725797,193.15,193.12,2.85]
[1761455762938,3.98725797,193.14,193.12,2.85]
[1761455763138,3.98725797,193.13,193.12,2.85]
[1761455765748,6.61725797,193.13,193.12,2.85]
[1761455765946,6.61725797,193.13,193.09,2.85]
[1761455766138,3.98725797,193.12,193.09,2.85]
[1761455766338,2.63,193.13,193.09,2.85]
[1761455766641,3.98029071,193.12,193.09,2.85]
[1761455766844,2.63,193.13,193.09,2.85]
[1761455767041,3.98029071,193.12,193.09,2.85]
[1761455767244,2.63,193.13,193.09,2.85]
[1761455767445,3.97962345,193.12,193.09,2.85]
[1761455767644,2.63,193.13,193.09,2.85]
[1761455767846,3.97962345,193.12,193.09,2.85]
[1761455768045,2.63,193.13,193.09,2.85]
[1761455768245,6.60915295,193.12,193.09,2.85]
[1761455768440,2.63,193.12,193.09,2.85]
[1761455771944,3.97277767,193.11,193.03,2.86]
[1761455772146,2.65,193.1,193.03,2.86]
[1761455774157,2.65,193.08,193.03,2.86]
[1761455774744,2.65,193.08,192.91,2.86]
[1761455774945,2.65,193.06,192.92,62.4]
[1761455775252,2.65,193.06,192.93,2.86]
[1761455776157,2.65,193.06,192.95,2.86]
[1761455776753,3.97075003,193.05,192.95,2.86]
[1761455776944,2.65,193.04,192.95,2.86]
[1761455794359,2.65,193.04,192.96,2.86]
[1761455813071,2.73,193.09,192.99,2.87]
[1761455813371,2.73,193.07,192.99,2.87]
[1761455813678,6.71450263,193.06,192.99,2.87]
[1761455813979,2.73,193.06,192.99,2.87]
[1761455815180,3.98791037,193.05,192.99,2.87]
[1761455815380,2.73,193.06,192.99,2.87]
[1761455815678,3.98791037,193.05,192.99,2.87]
[1761455815871,2.73,193.06,192.99,2.87]
[1761455816070,3.98790421,193.05,192.99,2.87]
[1761455816266,2.73,193.06,192.99,2.87]
[1761455816470,6.72019805,193.05,192.99,2.87]
[1761455816680,2.73,193.05,192.99,2.87]
[1761455817386,6.72233639,193.04,192.99,2.87]
[1761455817679,2.73,193.04,192.99,2.87]
[1761455819179,3.99663124,193.03,192.99,2.87]
[1761455819381,2.73,193.04,192.99,2.87]
[1761455819583,3.99663265,193.03,192.99,2.87]
[1761455819785,2.73,193.04,192.99,2.87]
[1761455819982,3.99663265,193.03,192.99,2.87]
[1761455820176,2.73,193.07,192.99,2.87]
[1761455820482,3.99674901,193.06,192.99,2.87]
[1761455820682,3.99674901,193.05,192.99,2.87]
[1761455820981,3.99674901,193.04,192.99,2.87]
[1761455821176,3.99674901,193.03,192.99,2.87]
[1761455821369,2.73,193.07,192.99,2.87]
[1761455821582,6.856772,193.06,192.99,2.87]
[1761455821883,3.996772,193.05,192.99,2.87]
[1761455822077,3.996772,193.04,192.99,2.87]
[1761455822277,3.996772,193.03,192.99,2.87]
[1761455822479,2.86,193.06,192.99,2.87]
[1761455822678,3.99679722,193.05,192.99,2.87]
[1761455822879,6.85679722,193.04,192.99,2.87]
[1761455823179,3.99679722,193.03,192.99,2.87]
[1761455823380,2.86,193.04,192.99,2.87]
[1761455823581,3.99668524,193.03,192.99,2.87]
[1761455823780,2.86,193.04,192.99,2.87]
[1761455823987,3.99668524,193.03,192.99,2.87]
[1761455824286,2.86,193.04,192.99,2.87]
[1761455824587,3.99655422,193.03,192.99,2.87]
[1761455824779,2.86,193.06,192.99,2.87]
[1761455824979,3.99655514,193.05,192.99,2.87]
[1761455825175,3.99655514,193.04,192.99,2.87]
[1761455825382,3.99655514,193.03,192.99,2.87]
[1761455825586,2.86,193.06,192.99,2.87]
[1761455825776,3.9964363,193.05,192.99,2.87]
[1761455825974,3.9964363,193.04,192.99,2.87]
[1761455826180,3.9964363,193.03,192.99,2.87]
[1761455826380,2.86,193.06,192.99,2.87]
[1761455826580,3.99638918,193.05,192.99,2.87]
[1761455826876,3.99638918,193.04,193.01,2.76]
[1761455827080,3.99638918,193.03,193.01,2.76]
[1761455827281,2.86,193.06,193.01,2.76]
[1761455827480,6.85635254,193.05,193.01,2.76]
[1761455827676,3.99635254,193.04,193.01,2.76]
[1761455827879,3.99635254,193.03,193.01,2.76]
[1761455828076,2.86,193.05,193.01,2.76]
[1761455828279,3.99636345,193.04,193.01,2.76]
[1761455828481,3.99636345,193.03,193.01,2.76]
[1761455828677,2.86,193.05,193.01,2.76]
[1761455828882,3.99632707,193.04,193.01,2.76]
[1761455829083,3.99632707,193.03,193.01,2.76]
[1761455829382,2.86,193.05,193.01,2.76]
[1761455829585,2.88,193.08,193.04,2.71]
[1761455829782,6.87707368,193.07,193.04,2.71]
[1761455830092,6.87707368,193.06,193.04,2.71]
[1761455830290,2.88,193.06,193.04,2.71]
[1761455834481,2.88,193.09,193.04,2.71]
[1761455834684,4.8392338,193.13,193.04,2.71]
[1761455834685,2.88,193.07,193.04,2.71]
[1761455836893,2.88,193.07,193.04,4.22093823]
[1761455839297,2.88,193.07,193.01,4.22093823]
[1761455842092,2.88,193.07,193.02,2.71]
[1761455842802,2.88,193.05,193.01,4.22093823]